fUSD/lending_fUSD_20240319
["ID","MTS","AMOUNT","RATE_DAILY","PERIOD"]
[319571070,1710871855482,-3053.19,0.0003589,5]
[319571071,1710871855493,-500.0,0.0003589,5]
[319571072,1710871855505,-527.61,0.0003589,5]
[319571073,1710871855516,-151.0,0.0003589,7]
[319571074,1710871855533,-151.0,0.0003589,7]
[319571075,1710871855544,-151.0,0.0003589,7]
[319571076,1710871855555,-151.0,0.0003589,7]
[319571077,1710871855567,-151.0,0.0003589,7]
[319571078,1710871855578,-500.0,0.0003589,5]
[319571079,1710871855589,-500.0,0.0003589,5]
[319571080,1710871855600,-7357.06,0.0003589,5]
[319571081,1710871855611,-9735.42,0.0003589,5]
[319571082,1710871855622,-2185.93,0.0003589,5]
[319571083,1710871855634,-47642.27,0.0003589,5]
[319571084,1710871855644,-4747.66,0.0003589,5]
[319571085,1710871855654,-151.0,0.0003589,7]
[319571086,1710871855664,-151.0,0.0003589,7]
[319571087,1710871855675,-1712.141119,0.0003589,7]
[319571088,1710871855694,-151.0,0.0003589,7]
[319571089,1710871855705,-1712.141119,0.0003589,7]
[319571090,1710871855715,-165.33616,0.0003589,7]
[319571091,1710871855726,-1712.141119,0.0003589,7]
[319571092,1710871855737,-1712.141119,0.0003589,7]
[319571093,1710871855747,-506.29342889,0.0003589,7]
[319571094,1710871855796,-1205.84769011,0.0003589,7]
[319571095,1710871855805,-153.11034345,0.00035924,2]
[319571096,1710871855816,-152.66890905,0.0003599,7]
[319571097,1710871855826,-1000.0,0.00036,5]
[319571098,1710871855836,-1000.0,0.00036,5]
[319571099,1710871855847,-106.47305739,0.00036009,7]
[319571100,1710871855859,-47.64054598,0.00036009,7]
[319571101,1710871855870,-272.17,0.00036021,2]
[319571102,1710871855880,-234.01,0.00036037,2]
[319571103,1710871855890,-272.17,0.00036116,2]
[319571104,1710871855900,-178.04449098,0.00036163,2]
[319571105,1710871855909,-178.04449098,0.00036163,2]
[319571106,1710871855918,-500.0,0.00036164,5]
[319571107,1710871855928,-560.95857499,0.00036164,5]
[319571108,1710871855946,-8.58142501,0.00036164,5]
[319571109,1710871855957,-334.23343088,0.00036164,5]
[319571110,1710871855966,-500.0,0.00036164,5]
[319571111,1710871855976,-500.0,0.00036164,5]
[319571112,1710871855986,-541.32,0.00036164,5]
[319571113,1710871855996,-500.0,0.00036164,5]
[319571114,1710871856006,-500.0,0.00036164,5]
[319571115,1710871856015,-500.0,0.00036164,5]
[319571116,1710871856026,-500.0,0.00036164,5]
[319571117,1710871856040,-500.0,0.00036164,5]
[319571118,1710871856050,-500.0,0.00036164,5]
[319571119,1710871856059,-742.9,0.00036164,5]
[319571120,1710871856070,-500.0,0.00036164,5]
[319571121,1710871856079,-500.0,0.00036164,5]
[319571122,1710871856090,-500.0,0.00036164,5]
[319571123,1710871856100,-500.0,0.00036164,5]
[319571124,1710871856111,-500.0,0.00036164,5]
[319571125,1710871856121,-248.27816855,0.00036164,5]
[319571126,1710871856131,-500.0,0.00036164,5]
[319571127,1710871856141,-500.0,0.00036164,2]
[319571128,1710871856151,-3344.85,0.00036164,5]
[319571129,1710871856162,-500.0,0.00036164,5]
[319571130,1710871856172,-1535.3,0.00036164,5]
[319571131,1710871856183,-500.0,0.00036164,5]
[319571132,1710871856195,-500.0,0.00036164,5]
[319571133,1710871856206,-500.0,0.00036164,2]
[319571134,1710871856218,-500.0,0.00036164,5]
[319571135,1710871856229,-500.0,0.00036164,5]
[319571136,1710871856241,-500.0,0.00036164,5]
[319571137,1710871856251,-2977.24,0.00036164,5]
[319571138,1710871856262,-500.0,0.00036164,5]
[319571139,1710871856274,-500.0,0.00036164,5]
[319571140,1710871856295,-500.0,0.00036164,5]
[319571141,1710871856311,-493.88609885,0.00036164,5]
[319571142,1710871856322,-500.0,0.00036164,5]
[319571143,1710871856334,-500.0,0.00036164,5]
[319571144,1710871856345,-500.0,0.00036164,5]
[319571145,1710871856357,-500.0,0.00036164,5]
[319571146,1710871856367,-714.13,0.00036164,5]
[319571147,1710871856379,-500.0,0.00036164,5]
[319571148,1710871856391,-239.82927394,0.00036164,5]
[319571149,1710871856404,-838.5,0.00036164,5]
[319571150,1710871856415,-2886.87,0.00036164,5]
[319571151,1710871856425,-500.0,0.00036164,5]
[319571152,1710871856436,-500.0,0.00036164,5]
[319571153,1710871856445,-501.33,0.00036164,5]
[319571154,1710871856455,-608.41,0.00036164,5]
[319571155,1710871856465,-516.66754286,0.00036164,5]
[319571156,1710871856475,-500.0,0.00036164,5]
[319571157,1710871856484,-1923.35,0.00036164,5]
[319571158,1710871856494,-500.0,0.00036164,5]
[319571159,1710871856504,-1453.34,0.00036164,5]
[319571160,1710871856514,-2213.91,0.00036164,5]
[319571161,1710871856527,-500.0,0.00036164,5]
[319571162,1710871856537,-500.0,0.00036164,5]
[319571163,1710871856547,-1703.85,0.00036164,5]
[319571164,1710871856558,-473.34137538,0.00036164,5]
[319571165,1710871856568,-500.0,0.00036164,5]
[319571166,1710871856578,-500.0,0.00036164,5]
[319571167,1710871856909,-500.0,0.00036164,5]
[319571168,1710871856936,-500.0,0.00036164,5]
[319571169,1710871856947,-1423.27,0.00036164,5]
[319571170,1710871856957,-637.06,0.00036164,5]
[319571171,1710871856967,-500.0,0.00036164,5]
[319571172,1710871856977,-500.0,0.00036164,5]
[319571173,1710871856987,-1617.12,0.00036164,5]
[319571174,1710871856997,-500.0,0.00036164,5]
[319571175,1710871857008,-500.0,0.00036164,5]
[319571176,1710871857018,-560.23,0.00036164,5]
[319571177,1710871857030,-500.0,0.00036164,5]
[319571178,1710871857039,-503.03001711,0.00036164,5]
[319571179,1710871857048,-500.0,0.00036164,5]
[319571180,1710871857058,-2692.91,0.00036164,5]
[319571181,1710871857067,-500.0,0.00036164,5]
[319571182,1710871857077,-500.0,0.00036164,5]
[319571183,1710871857087,-500.0,0.00036164,5]
[319571184,1710871857097,-192.66906213,0.00036164,5]
[319571185,1710871857107,-500.0,0.00036164,5]
[319571186,1710871857118,-500.0,0.00036164,5]
[319571187,1710871857128,-3580.9,0.00036164,5]
[319571188,1710871857138,-2290.17,0.00036164,5]
[319571189,1710871857148,-500.0,0.00036164,5]
[319571190,1710871857158,-500.0,0.00036164,5]
[319571191,1710871857168,-500.0,0.00036164,5]
[319571192,1710871857179,-500.0,0.00036164,5]
[319571193,1710871857189,-500.0,0.00036164,5]
[319571194,1710871857199,-500.0,0.00036164,5]
[319571195,1710871857210,-500.0,0.00036164,5]
[319571196,1710871857221,-1458.91,0.00036164,5]
[319571197,1710871857236,-905.75,0.00036164,5]
[319571198,1710871857246,-500.0,0.00036164,5]
[319571199,1710871857256,-500.0,0.00036164,5]
[319571200,1710871857267,-2004.1,0.00036164,5]
[319571201,1710871857280,-500.0,0.00036164,5]
[319571202,1710871857289,-500.0,0.00036164,5]
[319571203,1710871857299,-1363.16,0.00036164,5]
[319571204,1710871857309,-599.44,0.00036164,5]
[319571205,1710871857319,-822.22,0.00036164,5]
[319571206,1710871857329,-500.0,0.00036164,5]
[319571207,1710871857338,-500.0,0.00036164,5]
[319571208,1710871857348,-151.0,0.00036164,7]
[319571209,1710871857357,-500.0,0.00036164,5]
[319571210,1710871857367,-151.0,0.00036164,7]
[319571211,1710871857377,-500.0,0.00036164,5]
[319571212,1710871857386,-612.05,0.00036164,5]
[319571213,1710871857396,-500.0,0.00036164,5]
[319571214,1710871857406,-601.63,0.00036164,5]
[319571215,1710871857417,-749.65,0.00036164,5]
[319571216,1710871857427,-500.0,0.00036164,5]
[319571217,1710871857437,-1985.52,0.00036164,5]
[319571218,1710871857447,-400.8816991,0.00036164,5]
[319571219,1710871857457,-151.0,0.00036164,7]
[319571220,1710871857466,-151.0,0.00036164,7]
[319571221,1710871857476,-500.0,0.00036164,5]
[319571222,1710871857486,-500.0,0.00036164,5]
[319571223,1710871857496,-574.69226728,0.00036164,5]
[319571224,1710871857505,-151.0,0.00036164,7]
[319571225,1710871857519,-500.0,0.00036164,5]
[319571226,1710871857530,-553.76577069,0.00036164,5]
[319571227,1710871857539,-556.2,0.00036164,2]
[319571228,1710871857549,-1059.86,0.00036164,5]
[319571229,1710871857559,-1569.08,0.00036164,5]
[319571230,1710871857568,-568.1406505,0.00036164,5]
[319571231,1710871857578,-501.07807719,0.00036164,5]
[319571232,1710871857588,-500.0,0.00036164,5]
[319571233,1710871857598,-151.0,0.00036164,7]
[319571234,1710871857608,-500.0,0.00036164,5]
[319571235,1710871857618,-500.0,0.00036164,5]
[319571236,1710871857628,-216.73391,0.00036164,7]
[319571237,1710871857638,-500.0,0.00036164,5]
[319571238,1710871857648,-500.0,0.00036164,5]
[319571239,1710871857657,-216.73391,0.00036164,7]
[319571240,1710871857667,-726.82,0.00036164,5]
[319571241,1710871857676,-1385.23,0.00036164,5]
[319571242,1710871857691,-419.74035088,0.00036164,5]
[319571243,1710871857701,-1575.76,0.00036164,5]
[319571244,1710871857711,-151.954766,0.00036164,7]
[319571245,1710871857722,-526.03,0.00036164,5]
[319571246,1710871857732,-500.0,0.00036164,5]
[319571247,1710871857741,-622.51,0.00036164,5]
[319571248,1710871857751,-990.29,0.00036164,5]
[319571249,1710871857762,-500.0,0.00036164,5]
[319571250,1710871857772,-500.0,0.00036164,5]
[319571251,1710871857787,-500.0,0.00036164,5]
[319571252,1710871857796,-500.0,0.00036164,5]
[319571253,1710871857806,-958.65,0.00036164,5]
[319571254,1710871857816,-3416.48,0.00036164,5]
[319571255,1710871857825,-989.71,0.00036164,5]
[319571256,1710871857835,-151.0,0.00036164,7]
[319571257,1710871857845,-3511.4,0.00036164,5]
[319571258,1710871857855,-1730.41,0.00036164,5]
[319571259,1710871857865,-3620.5,0.00036164,5]
[319571260,1710871857874,-500.0,0.00036164,5]
[319571261,1710871857884,-2769.13,0.00036164,5]
[319571262,1710871857894,-151.0,0.00036164,7]
[319571263,1710871857904,-500.0,0.00036164,5]
[319571264,1710871857915,-500.0,0.00036164,5]
[319571265,1710871857925,-551.47,0.00036164,5]
[319571266,1710871857935,-526.16,0.00036164,5]
[319571267,1710871857945,-500.0,0.00036164,5]
[319571268,1710871857955,-500.0,0.00036164,5]
[319571269,1710871857977,-272.53679663,0.00036164,5]
[319571270,1710871857987,-4725.98,0.00036164,5]
[319571271,1710871857997,-3007.01,0.00036164,5]
[319571272,1710871858006,-793.21,0.00036164,5]
[319571273,1710871858016,-249.557334,0.00036164,7]
[319571274,1710871858028,-599.9441973,0.00036164,5]
[319571275,1710871858038,-1375.62,0.00036164,5]
[319571276,1710871858048,-249.557334,0.00036164,7]
[319571277,1710871858057,-500.0,0.00036164,5]
[319571278,1710871858067,-941.13,0.00036164,5]
[319571279,1710871858077,-1377.7,0.00036164,5]
[319571280,1710871858087,-500.0,0.00036164,5]
[319571281,1710871858096,-500.0,0.00036164,5]
[319571282,1710871858106,-637.62,0.00036164,5]
[319571283,1710871858115,-500.0,0.00036164,5]
[319571284,1710871858125,-1811.59,0.00036164,5]
[319571285,1710871858134,-500.0,0.00036164,5]
[319571286,1710871858144,-500.0,0.00036164,5]
[319571287,1710871858153,-500.0,0.00036164,5]
[319571288,1710871858163,-923.58,0.00036164,5]
[319571289,1710871858173,-500.0,0.00036164,5]
[319571290,1710871858182,-500.0,0.00036164,2]
[319571291,1710871858192,-523.15,0.00036164,5]
[319571292,1710871858201,-500.0,0.00036164,5]
[319571293,1710871858211,-509.11148797,0.00036164,5]
[319571294,1710871858221,-537.5,0.00036164,5]
[319571295,1710871858230,-1508.76,0.00036164,5]
[319571296,1710871858240,-1758.02,0.00036164,5]
[319571297,1710871858249,-812.3,0.00036164,5]
[319571298,1710871858259,-500.0,0.00036164,5]
[319571299,1710871858269,-2000.33,0.00036164,5]
[319571300,1710871858282,-930.78,0.00036164,5]
[319571301,1710871858292,-500.0,0.00036164,5]
[319571302,1710871858302,-507.5581677,0.00036164,5]
[319571303,1710871858312,-500.0,0.00036164,5]
[319571304,1710871858322,-620.14,0.00036164,5]
[319571305,1710871858332,-151.0,0.00036164,7]
[319571306,1710871858343,-151.0,0.00036164,7]
[319571307,1710871858354,-500.0,0.00036164,5]
[319571308,1710871858364,-1298.36,0.00036164,5]
[319571309,1710871858374,-500.0,0.00036164,5]
[319571310,1710871858384,-500.0,0.00036164,5]
[319571311,1710871858396,-594.11,0.00036164,5]
[319571312,1710871858407,-577.07450085,0.00036164,5]
[319571313,1710871858420,-500.0,0.00036164,5]
[319571314,1710871858432,-500.0,0.00036164,5]
[319571315,1710871858443,-500.0,0.00036164,5]
[319571316,1710871858455,-500.0,0.00036164,5]
[319571317,1710871858466,-810.94,0.00036164,5]
[319571318,1710871858477,-500.0,0.00036164,5]
[319571319,1710871858489,-389.76224953,0.00036164,5]
[319571320,1710871858500,-916.24,0.00036164,5]
[319571321,1710871858511,-500.0,0.00036164,5]
[319571322,1710871858523,-500.0,0.00036164,5]
[319571323,1710871858541,-562.89457897,0.00036164,5]
[319571324,1710871858552,-500.0,0.00036164,5]
[319571325,1710871858563,-1142.78,0.00036164,5]
[319571326,1710871858573,-1013.83,0.00036164,5]
[319571327,1710871858584,-500.0,0.00036164,5]
[319571328,1710871858595,-500.0,0.00036164,5]
[319571329,1710871858606,-1394.98,0.00036164,5]
[319571330,1710871858616,-729.56,0.00036164,5]
[319571331,1710871858627,-500.0,0.00036164,5]
[319571332,1710871858638,-2101.3,0.00036164,5]
[319571333,1710871858649,-678.46,0.00036164,5]
[319571334,1710871858659,-500.0,0.00036164,5]
[319571335,1710871858670,-500.0,0.00036164,5]
[319571336,1710871858682,-2521.17,0.00036164,5]
[319571337,1710871858694,-1293.03,0.00036164,5]
[319571338,1710871858704,-1785.76,0.00036164,5]
[319571339,1710871858715,-5786.88,0.00036164,5]
[319571340,1710871858728,-151.0,0.00036164,7]
[319571341,1710871858738,-500.0,0.00036164,5]
[319571342,1710871858748,-151.0,0.00036164,7]
[319571343,1710871858758,-553.81414791,0.00036164,5]
[319571344,1710871858769,-151.0,0.00036164,7]
[319571345,1710871858781,-500.0,0.00036164,5]
[319571346,1710871858790,-516.18,0.00036164,5]
[319571347,1710871858799,-500.0,0.00036164,5]
[319571348,1710871858809,-1059.8,0.00036164,5]
[319571349,1710871858819,-500.0,0.00036164,5]
[319571350,1710871858828,-1449.57,0.00036164,5]
[319571351,1710871858838,-500.0,0.00036164,5]
[319571352,1710871858847,-568.58,0.00036164,5]
[319571353,1710871858856,-179.04,0.00036164,5]
[319571354,1710871858866,-1708.71,0.00036164,5]
[319571355,1710871858876,-761.38,0.00036164,5]
[319571356,1710871858885,-545.44,0.00036164,5]
[319571357,1710871858895,-626.4987839,0.00036164,5]
[319571358,1710871858904,-500.0,0.00036164,5]
[319571359,1710871858914,-1040.38,0.00036164,5]
[319571360,1710871858924,-500.76278478,0.00036164,5]
[319571361,1710871858934,-986.37,0.00036164,5]
[319571362,1710871858943,-500.0,0.00036164,5]
[319571363,1710871858953,-4681.33984011,0.00036164,5]
[319571364,1710871859646,-318.66015989,0.00036164,5]
[319571365,1710871859655,-456.07201519,0.00036164,5]
[319571366,1710871859668,-271.19798481,0.00036164,5]
[319571367,1710871859678,-500.0,0.00036164,5]
[319571368,1710871859692,-1052.35,0.00036164,5]
[319571369,1710871859702,-500.0,0.00036164,5]
[319571370,1710871859711,-585.44,0.00036164,5]
[319571371,1710871859720,-879.36,0.00036164,5]
[319571372,1710871859732,-500.0,0.00036164,5]
[319571373,1710871859742,-500.0,0.00036164,5]
[319571374,1710871859751,-383.24835394,0.00036164,5]
[319571375,1710871859760,-500.0,0.00036164,5]
[319571376,1710871859771,-500.0,0.00036164,5]
[319571377,1710871859784,-140.74835332,0.00036164,5]
[319571378,1710871859796,-359.25164668,0.00036164,5]
[319571379,1710871859806,-3615.4,0.00036164,5]
[319571380,1710871859815,-500.0,0.00036164,5]
[319571381,1710871859824,-500.0,0.00036164,5]
[319571382,1710871859833,-235.69543773,0.00036164,5]
[319571383,1710871859846,-265.07735886,0.00036164,5]
[319571384,1710871859855,-1054.09,0.00036164,5]
[319571385,1710871859865,-151.0,0.00036164,7]
[319571386,1710871859874,-241.699536,0.00036164,7]
[319571387,1710871859883,-176.62722705,0.00036164,5]
[319571388,1710871861018,-547.52168762,0.00035615,4]
[319571389,1710871861027,-5781.43720442,0.00035615,4]
[319571390,1710871861041,-500.0,0.00035616,2]
[319571391,1710871861052,-500.0,0.0003589,2]
[319571392,1710871861062,-6341.10277295,0.00036164,5]
[319571393,1710871861072,-500.0,0.00036164,5]
[319571394,1710871861081,-1896.67,0.00036164,5]
[319571395,1710871861091,-500.0,0.00036164,5]
[319571396,1710871861101,-9759.29,0.00036164,5]
[319571397,1710871861110,-500.0,0.00036164,5]
[319571398,1710871861120,-500.0,0.00036164,5]
[319571399,1710871861130,-747.0,0.00036164,5]
[319571400,1710871861140,-1235.25,0.00036164,5]
[319571401,1710871861149,-500.0,0.00036164,5]
[319571402,1710871861159,-3513.85,0.00036164,5]
[319571403,1710871861169,-500.0,0.00036164,5]
[319571404,1710871861179,-558.27133013,0.00036164,5]
[319571405,1710871861189,-500.0,0.00036164,5]
[319571406,1710871861199,-151.0,0.00036164,7]
[319571407,1710871861208,-151.0,0.00036164,7]
[319571408,1710871861218,-792.47,0.00036164,5]
[319571409,1710871861227,-151.0,0.00036164,7]
[319571410,1710871861237,-2058.74,0.00036164,5]
[319571411,1710871861247,-376.65514441,0.00036164,5]
[319571412,1710871861257,-151.0,0.00036164,7]
[319571413,1710871861267,-151.0,0.00036164,7]
[319571414,1710871861277,-151.0,0.00036164,7]
[319571415,1710871861292,-3710.52,0.00036164,5]
[319571416,1710871861303,-500.0,0.00036164,5]
[319571417,1710871861313,-10975.37937956,0.00036164,5]
[319571418,1710871861334,-5605.94062912,0.00035615,4]
[319571419,1710871861344,-3812.45219131,0.00036164,5]
[319571420,1710871861360,-8888.91635657,0.00036164,5]
[319571421,1710871861377,-1232.5350095,0.00036164,5]
[319571422,1710871861389,-276.9281522,0.00036164,5]
[319571423,1710871861401,-933.17494973,0.00036164,5]
[319571424,1710871861413,-8157.56253358,0.00036164,5]
[319571425,1710871861425,-486.20310985,0.00036164,5]
[319571426,1710871861440,-694.14833885,0.00036164,5]
[319571427,1710871861461,-1429.59072717,0.00036164,5]
[319571561,1710873031607,-424.19093922,0.00019265,2]
[319571562,1710873031616,-200.86359742,0.00019265,2]
[319571563,1710873031626,-155.0,0.00019266,2]
[319571564,1710873031636,-707.44608273,0.00019266,2]
[319571565,1710873031673,-927.00262819,0.00019266,2]
[319571566,1710873031686,-1724.68174667,0.00019266,2]
[319571567,1710873031696,-5291.61825333,0.00019266,2]
[319571568,1710873031708,-597.35932298,0.00019266,2]
[319571569,1710873031720,-1983.41123965,0.00019266,2]
[319571570,1710873031733,-2670.89527829,0.00019266,2]
[319571571,1710873031742,-1982.47149714,0.00019266,2]
[319571572,1710873031754,-182.88292245,0.00019266,2]
[319571573,1710873031763,-1883.56248326,0.00019267,2]
[319571574,1710873031772,-395.43533694,0.00019268,2]
[319571575,1710873031792,-1947.72625634,0.00019268,2]
[319571576,1710873031801,-1235.65513298,0.00019268,2]
[319571577,1710873031810,-449.61243464,0.00019268,2]
[319571578,1710873031819,-259.03817803,0.00019268,2]
[319571579,1710873031829,-188.50937058,0.00019268,2]
[319571580,1710873031839,-25.23828903,0.00019269,2]
[319571581,1710873031851,-124.76171097,0.00019269,2]
[319571582,1710873031861,-150.0,0.00019269,2]
[319571583,1710873031870,-484.98586537,0.00019269,2]
[319571584,1710873031880,-374.03634039,0.00019269,2]
[319571585,1710873031889,-277.05147729,0.00019269,2]
[319571586,1710873031899,-157.80815582,0.0001927,2]
[319571587,1710873031911,-617.64373291,0.0001927,2]
[319571588,1710873031920,-1000.0,0.0001927,2]
[319571590,1710873031930,-400.0,0.00019271,2]
[319571592,1710873031939,-2215.6645,0.00019321,2]
[319571594,1710873031948,-7822.14,0.00019321,2]
[319571596,1710873031957,-6053.66,0.00019321,2]
[319571598,1710873031966,-16793.3594,0.00019331,2]
[319571600,1710873031976,-157.30825634,0.00019442,2]
[319571602,1710873031985,-198.56,0.00019442,2]
[319571604,1710873031995,-499.99,0.00019585,2]
[319571606,1710873032005,-9999.99,0.00019585,2]
[319571608,1710873032017,-4804.69,0.00019585,2]
[319571610,1710873032028,-299.99,0.00019585,7]
[319571612,1710873032038,-157.30825625,0.00020139,2]
[319571614,1710873032047,-157.30825625,0.00020836,2]
[319571616,1710873032057,-157.30825625,0.00021534,2]
[319571618,1710873032067,-157.30825625,0.00022231,2]
[319571620,1710873032077,-157.30825625,0.00022928,2]
[319571622,1710873032088,-407.24,0.00023216,2]
[319571624,1710873032098,-157.30825625,0.00023625,2]
[319571626,1710873032107,-262.53756022,0.00023902,2]
[319571628,1710873032116,-157.30825625,0.00024322,2]
[319571630,1710873032126,-250.0,0.00024529,2]
[319571632,1710873032135,-16084.8,0.0002455,2]
[319571634,1710873032144,-352.47,0.00024824,2]
[319571636,1710873032154,-3325.31,0.00024824,2]
[319571637,1710873032164,-160.48,0.00024954,10]
[319571638,1710873032174,-157.30825625,0.0002502,2]
[319571639,1710873032183,-1466.33,0.00025038,2]
[319571641,1710873032193,-358.17,0.00025149,2]
[319571643,1710873032202,-3319.38,0.00025172,2]
[319571645,1710873032212,-209.6,0.00025246,120]
[319571647,1710873032222,-250.0,0.00025333,2]
[319571649,1710873032233,-407.24,0.0002548,2]
[319571651,1710873032244,-151.14,0.00025489,120]
[319571653,1710873032254,-157.30825625,0.00025717,2]
[319571656,1710873032265,-250.0,0.00025859,2]
[319571657,1710873032275,-205.98,0.00026063,2]
[319571659,1710873032285,-157.30825625,0.00026414,2]
[319571662,1710873032296,-1877.97501996,0.00026711,5]
[319571663,1710873032306,-157.30825625,0.00027111,2]
[319571665,1710873032317,-173.05,0.00027425,2]
[319571667,1710873032326,-407.24,0.00027744,2]
[319571669,1710873032336,-157.30825625,0.00027808,2]
[319571672,1710873032348,-3319.38,0.00027911,2]
[319571674,1710873032358,-352.47,0.00027927,2]
[319571675,1710873032368,-358.17,0.00028293,2]
[319571677,1710873032379,-209.6,0.00028402,120]
[319571679,1710873032389,-800.0,0.00028466,2]
[319571681,1710873032399,-157.30825625,0.00028506,2]
[319571683,1710873032410,-11224.29972504,0.00028702,2]
[319571729,1710873033064,-45383.70027496,0.00028702,2]
[319571730,1710873033074,-157.30825625,0.00029203,2]
[319571731,1710873033085,-151.14,0.00029737,120]
[319571732,1710873033095,-179.19521252,0.00029779,2]
[319571733,1710873033105,-1086.90066778,0.00029779,4]
[319571734,1710873033116,-249.70589277,0.00029799,2]
[319571735,1710873033126,-181.1293921,0.000298,2]
[319571736,1710873033136,-175.89867086,0.000298,2]
[319571737,1710873033146,-70159.53377958,0.00029877,30]
[319571738,1710873033157,-177.73652922,0.00029877,2]
[319571739,1710873033166,-155.0,0.00029877,3]
[319571741,1710873033178,-282.80806808,0.00029877,2]
[319571742,1710873033189,-290.4902482,0.00029877,2]
[319571743,1710873033199,-5109.09005167,0.00029878,2]
[319571744,1710873033209,-283263.4558631,0.00029879,2]
[319571745,1710873033223,-956.37052962,0.00029879,2]
[319571746,1710873033244,-4912.7707998,0.00029879,2]
[319571747,1710873033255,-1295.42,0.00029879,2]
[319571748,1710873033267,-3427.41654436,0.00029879,2]
[319571749,1710873033279,-69288.04330198,0.00029879,2]
[319571750,1710873033314,-4404.4,0.00029879,2]
[319571751,1710873033326,-203248.74358094,0.00029879,2]
[319571752,1710873033335,-500.0,0.00029879,2]
[319571753,1710873033345,-250.0,0.00029879,2]
[319571754,1710873033354,-194.13312822,0.00029879,2]
[319571755,1710873033363,-491.61875461,0.00029879,2]
[319571756,1710873033373,-452.97729919,0.00029879,2]
[319571757,1710873033382,-610967.78152537,0.0002988,2]
[319571758,1710873033402,-4770.0549657,0.0002988,2]
[319571759,1710873033416,-853.15156266,0.0002988,2]
[319571760,1710873033427,-741.8811006,0.0002988,2]
[319571761,1710873033442,-264.346,0.0002988,2]
[319571766,1710873037703,-155.0,0.00019264,2]
[319571767,1710873037713,-4172.42152539,0.00019265,2]
[319571768,1710873037723,-4860.94182058,0.000298,2]
[319571769,1710873037732,-1162.57479525,0.00029869,2]
[319571770,1710873037741,-169481.84132373,0.0002988,2]
[319571771,1710873037754,-1290.68,0.0002988,2]
[319571772,1710873037885,-3056.46112146,0.0002988,2]
[319571773,1710873037897,-814.44081818,0.0002988,2]
[319571774,1710873037911,-61951.17613391,0.0002988,2]
[319571775,1710873037924,-157.30825625,0.000299,2]
[319571776,1710873037935,-153.11034345,0.000299,2]
[319571777,1710873037944,-6249.08851393,0.0003,2]
[319571778,1710873037954,-2502.0,0.0003,10]
[319571779,1710873037964,-6234.76,0.0003,2]
[319571780,1710873037975,-407.24,0.00030007,2]
[319571781,1710873037987,-672.0,0.000302,3]
[319571782,1710873038000,-2184.0,0.000302,3]
[319571783,1710873038012,-250.0,0.00030427,2]
[319571784,1710873038025,-1086.90066775,0.00030638,5]
[319571785,1710873038036,-3319.38,0.00030651,2]
[319571786,1710873038046,-437.10956708,0.00030742,7]
[319571787,1710873038056,-352.47,0.0003103,2]
[319571788,1710873038066,-152.98976244,0.00031046,7]
[319571789,1710873038076,-151.45080724,0.00031348,7]
[319571790,1710873038087,-358.17,0.00031437,2]
[319571791,1710873038098,-1086.90066775,0.00031496,5]
[319571792,1710873038108,-151.45080724,0.00031505,7]
[319571793,1710873038118,-209.6,0.00031558,120]
[319571794,1710873038127,-153.61528772,0.00031705,7]
[319571795,1710873038138,-437.10956708,0.00031727,7]
[319571796,1710873038147,-156.64752417,0.00031994,7]
[319571797,1710873038157,-150.9130171,0.00032144,7]
[319571798,1710873038174,-407.24,0.00032271,2]